[Event "*** SCC Grand Prix: Titled Tuesday Blitz"]
[Site "Chess.com"]
[Date "2020.08.25"]
[Round "8"]
[White "Brave_spirit12"]
[Black "praveenb2002"]
[Result "0-1"]
[WhiteElo "2540"]
[BlackElo "2749"]
[TimeControl "180+1"]
[EndTime "11:37:23 PDT"]
[Termination "praveenb2002 won by checkmate"]

1. e4 {[%clk 0:02:58.6]} 1... c5 {[%clk 0:02:59.6]} 2. c3 {[%clk 0:02:58.3]}
2... d5 {[%clk 0:02:56.8]} 3. exd5 {[%clk 0:02:59.2]} 3... Qxd5 {[%clk
0:02:56.6]} 4. Nf3 {[%clk 0:02:59.2]} 4... Nc6 {[%clk 0:02:53.3]} 5. Be2 {[%clk
0:02:58.8]} 5... Bg4 {[%clk 0:02:53.2]} 6. O-O {[%clk 0:02:57.9]} 6... e5 {[%clk
0:02:50.2]} 7. d4 {[%clk 0:02:56.6]} 7... e4 {[%clk 0:02:47.7]} 8. Ne5 {[%clk
0:02:48.3]} 8... Bxe2 {[%clk 0:02:42]} 9. Qxe2 {[%clk 0:02:46.8]} 9... cxd4
{[%clk 0:02:42.5]} 10. Nxc6 {[%clk 0:02:46.2]} 10... d3 {[%clk 0:02:38.2]} 11.
Qe3 {[%clk 0:02:45.9]} 11... bxc6 {[%clk 0:02:35.1]} 12. Nd2 {[%clk 0:02:42.7]}
12... f5 {[%clk 0:02:35]} 13. b3 {[%clk 0:02:31.6]} 13... Nf6 {[%clk 0:02:34.5]}
14. Bb2 {[%clk 0:02:31.4]} 14... Bc5 {[%clk 0:02:31.5]} 15. Qg5 {[%clk
0:02:27.6]} 15... O-O {[%clk 0:02:31.4]} 16. c4 {[%clk 0:02:26.6]} 16... Qd7
{[%clk 0:02:29.2]} 17. Bxf6 {[%clk 0:02:06.6]} 17... Rxf6 {[%clk 0:02:28.1]} 18.
Nxe4 {[%clk 0:02:07]} 18... fxe4 {[%clk 0:02:18.6]} 19. Qxc5 {[%clk 0:02:07.9]}
19... Rg6 {[%clk 0:02:12]} 20. Qe3 {[%clk 0:02:06.9]} 20... Qg4 {[%clk
0:02:10.3]} 21. g3 {[%clk 0:02:05.9]} 21... Rh6 {[%clk 0:02:08.4]} 22. f3 {[%clk
0:02:01]} 22... Qh3 {[%clk 0:02:01.9]} 23. Rf2 {[%clk 0:01:57.7]} 23... exf3
{[%clk 0:02:00.3]} 24. Qxf3 {[%clk 0:01:50.1]} 24... Rf6 {[%clk 0:02:00]} 25.
Qg2 {[%clk 0:01:30.6]} 25... Qe6 {[%clk 0:01:49.7]} 26. Rd1 {[%clk 0:01:25.9]}
26... Rd8 {[%clk 0:01:47.6]} 27. h4 {[%clk 0:01:00.7]} 27... Qe3 {[%clk
0:01:42.3]} 28. Rd2 {[%clk 0:00:53.2]} 28... Qe1+ {[%clk 0:01:38.1]} 29. Qf1
{[%clk 0:00:32.1]} 29... Qe3 {[%clk 0:01:20.4]} 30. Kg2 {[%clk 0:00:32]} 30...
Rdf8 {[%clk 0:01:01.9]} 31. Rxf6 {[%clk 0:00:20.4]} 31... Rxf6 {[%clk
0:01:02.1]} 32. Rf2 {[%clk 0:00:06.6]} 32... d2 {[%clk 0:00:33.8]} 33. Rxf6
{[%clk 0:00:06.3]} 33... gxf6 {[%clk 0:00:34.7]} 34. Qd1 {[%clk 0:00:06.6]}
34... Kf8 {[%clk 0:00:24.1]} 35. Qg4 {[%clk 0:00:05]} 35... Qd3 {[%clk
0:00:14.6]} 36. Qc8+ {[%clk 0:00:03.1]} 36... Kf7 {[%clk 0:00:15]} 37. Qc7+
{[%clk 0:00:03.1]} 37... Kg6 {[%clk 0:00:12.9]} 38. h5+ {[%clk 0:00:03.7]} 38...
Kxh5 {[%clk 0:00:12.9]} 39. Qf7+ {[%clk 0:00:03.9]} 39... Kg5 {[%clk 0:00:09.6]}
40. Qg7+ {[%clk 0:00:03.7]} 40... Qg6 {[%clk 0:00:10]} 41. Qd7 {[%clk
0:00:03.2]} 41... Qe4+ {[%clk 0:00:10.2]} 42. Kh2 {[%clk 0:00:03.6]} 42... Qe2+
{[%clk 0:00:10.2]} 43. Kh3 {[%clk 0:00:04.1]} 43... d1=Q {[%clk 0:00:08]} 44.
Qg7+ {[%clk 0:00:04.2]} 44... Kf5 {[%clk 0:00:08.5]} 45. Qxh7+ {[%clk
0:00:03.7]} 45... Ke6 {[%clk 0:00:08.1]} 46. Qg8+ {[%clk 0:00:04.1]} 46... Kd6
{[%clk 0:00:08]} 47. Qd8+ {[%clk 0:00:03.9]} 47... Kc5 {[%clk 0:00:07.6]} 48.
Qa5+ {[%clk 0:00:04.3]} 48... Kd4 {[%clk 0:00:08.1]} 49. Qxa7+ {[%clk
0:00:04.7]} 49... Kc3 {[%clk 0:00:08]} 50. Qa5+ {[%clk 0:00:03.1]} 50... Kc2
{[%clk 0:00:08.4]} 51. Qf5+ {[%clk 0:00:02.4]} 51... Qdd3 {[%clk 0:00:08.3]} 52.
Qf4 {[%clk 0:00:02.1]} 52... Qh5+ {[%clk 0:00:07.6]} 53. Kg2 {[%clk 0:00:02.4]}
53... Qde2+ {[%clk 0:00:07.6]} 54. Qf2 {[%clk 0:00:03.3]} 54... Qf3+ {[%clk
0:00:07.4]} 55. Kh3 {[%clk 0:00:02.7]} 55... Qexf2 {[%clk 0:00:07.1]} 56. Kh4
{[%clk 0:00:02.7]} 56... Q2xg3# {[%clk 0:00:07.3]} 0-1

[Event "*** SCC Grand Prix: Titled Tuesday Blitz"]
[Site "Chess.com"]
[Date "2020.08.25"]
[Round "8"]
[White "FontVella8"]
[Black "Reader777"]
[Result "1/2-1/2"]
[WhiteElo "2497"]
[BlackElo "2672"]
[TimeControl "180+1"]
[EndTime "11:37:23 PDT"]
[Termination "Game drawn by repetition"]

1. e4 {[%clk 0:03:00.9]} 1... c5 {[%clk 0:02:59.4]} 2. Nf3 {[%clk 0:03:00.7]}
2... d6 {[%clk 0:02:58.6]} 3. d4 {[%clk 0:03:00.4]} 3... cxd4 {[%clk 0:02:58.5]}
4. Qxd4 {[%clk 0:03:01.1]} 4... a6 {[%clk 0:02:56]} 5. Be2 {[%clk 0:03:00.8]}
5... Nc6 {[%clk 0:02:54.9]} 6. Qe3 {[%clk 0:03:00.8]} 6... Nf6 {[%clk
0:02:53.5]} 7. O-O {[%clk 0:03:01]} 7... Bg4 {[%clk 0:02:52.5]} 8. Rd1 {[%clk
0:02:59.6]} 8... Qc7 {[%clk 0:02:41.7]} 9. h3 {[%clk 0:02:58.5]} 9... Bxf3
{[%clk 0:02:40.9]} 10. Bxf3 {[%clk 0:02:58.5]} 10... g6 {[%clk 0:02:40.7]} 11.
Nc3 {[%clk 0:02:57]} 11... Bg7 {[%clk 0:02:38.8]} 12. Be2 {[%clk 0:02:36.7]}
12... O-O {[%clk 0:02:36.6]} 13. a3 {[%clk 0:02:34]} 13... Rac8 {[%clk
0:02:26.7]} 14. Nd5 {[%clk 0:02:27.5]} 14... Qd8 {[%clk 0:02:16.7]} 15. Rb1
{[%clk 0:02:18.6]} 15... Nd7 {[%clk 0:02:13.2]} 16. c3 {[%clk 0:02:04.9]} 16...
e6 {[%clk 0:02:08.4]} 17. Nf4 {[%clk 0:02:03.9]} 17... Qe7 {[%clk 0:02:07.6]}
18. Qg3 {[%clk 0:01:30.4]} 18... Nc5 {[%clk 0:02:02.8]} 19. f3 {[%clk
0:01:22.2]} 19... Be5 {[%clk 0:01:54.3]} 20. Qf2 {[%clk 0:01:14.3]} 20... Rfd8
{[%clk 0:01:49]} 21. Be3 {[%clk 0:01:07.8]} 21... Bg7 {[%clk 0:01:36.6]} 22. h4
{[%clk 0:01:04.6]} 22... h5 {[%clk 0:01:33.1]} 23. g3 {[%clk 0:00:55.5]} 23...
Ne5 {[%clk 0:01:29.6]} 24. Nh3 {[%clk 0:00:46.9]} 24... b5 {[%clk 0:01:22.9]}
25. Bg5 {[%clk 0:00:45.3]} 25... Bf6 {[%clk 0:01:21.5]} 26. Be3 {[%clk
0:00:45.4]} 26... Nc4 {[%clk 0:01:18.7]} 27. Bxc4 {[%clk 0:00:45]} 27... bxc4
{[%clk 0:01:19.6]} 28. Nf4 {[%clk 0:00:38.1]} 28... Be5 {[%clk 0:01:16.5]} 29.
Bd4 {[%clk 0:00:34.4]} 29... Bxf4 {[%clk 0:01:10.6]} 30. gxf4 {[%clk 0:00:35.3]}
30... Nd3 {[%clk 0:01:10.4]} 31. Qg3 {[%clk 0:00:35]} 31... e5 {[%clk
0:01:09.5]} 32. fxe5 {[%clk 0:00:35.1]} 32... dxe5 {[%clk 0:01:09.2]} 33. Be3
{[%clk 0:00:35.4]} 33... Qe6 {[%clk 0:00:57.7]} 34. Rd2 {[%clk 0:00:34.5]} 34...
Rb8 {[%clk 0:00:53.1]} 35. Rbd1 {[%clk 0:00:30.4]} 35... Rb3 {[%clk 0:00:51.4]}
36. Qg2 {[%clk 0:00:19.9]} 36... Rdb8 {[%clk 0:00:50.3]} 37. Qg5 {[%clk
0:00:08.7]} 37... Rxb2 {[%clk 0:00:46]} 38. Rxb2 {[%clk 0:00:08.9]} 38... Rxb2
{[%clk 0:00:45.5]} 39. Qd8+ {[%clk 0:00:08.5]} 39... Kh7 {[%clk 0:00:35.9]} 40.
Qf8 {[%clk 0:00:06.3]} 40... Qf6 {[%clk 0:00:19]} 41. Bh6 {[%clk 0:00:02.9]}
41... Rb7 {[%clk 0:00:12.4]} 42. Rf1 {[%clk 0:00:02.8]} 42... Rd7 {[%clk
0:00:11.6]} 43. Bg5 {[%clk 0:00:03]} 43... Qg7 {[%clk 0:00:10.7]} 44. Qa8 {[%clk
0:00:01.7]} 44... f6 {[%clk 0:00:10.2]} 45. Be3 {[%clk 0:00:01.7]} 45... g5
{[%clk 0:00:10.2]} 46. Qxa6 {[%clk 0:00:01.5]} 46... gxh4+ {[%clk 0:00:10.1]}
47. Kh1 {[%clk 0:00:02.2]} 47... Qg3 {[%clk 0:00:09.7]} 48. Qe6 {[%clk
0:00:01.8]} 48... Rg7 {[%clk 0:00:09]} 49. Qf5+ {[%clk 0:00:02.4]} 49... Kg8
{[%clk 0:00:09.2]} 50. Qe6+ {[%clk 0:00:02.5]} 50... Kh8 {[%clk 0:00:08.6]} 51.
Qe8+ {[%clk 0:00:02.3]} 51... Kh7 {[%clk 0:00:07.9]} 52. Qxh5+ {[%clk
0:00:02.7]} 52... Kg8 {[%clk 0:00:07.8]} 53. Qe8+ {[%clk 0:00:03.1]} 53... Kh7
{[%clk 0:00:08]} 54. Qh5+ {[%clk 0:00:03.7]} 54... Kg8 {[%clk 0:00:08.3]} 55.
Qe8+ {[%clk 0:00:03.9]} 55... Kh7 {[%clk 0:00:08.4]} 56. Qh5+ {[%clk 0:00:03.1]}
1/2-1/2

[Event "*** SCC Grand Prix: Titled Tuesday Blitz"]
[Site "Chess.com"]
[Date "2020.08.25"]
[Round "8"]
[White "BJthechessgod"]
[Black "maxip32"]
[Result "1-0"]
[WhiteElo "2231"]
[BlackElo "2401"]
[TimeControl "180+1"]
[EndTime "11:37:24 PDT"]
[Termination "BJthechessgod won by resignation"]

1. e4 {[%clk 0:03:00.9]} 1... c5 {[%clk 0:02:59.5]} 2. Nf3 {[%clk 0:02:49.3]}
2... d6 {[%clk 0:02:59.2]} 3. c3 {[%clk 0:02:48.7]} 3... Nf6 {[%clk 0:02:58.8]}
4. Be2 {[%clk 0:02:49.6]} 4... g6 {[%clk 0:02:55.2]} 5. O-O {[%clk 0:02:46.6]}
5... Bg7 {[%clk 0:02:54.9]} 6. Re1 {[%clk 0:02:47]} 6... O-O {[%clk 0:02:54.3]}
7. Bf1 {[%clk 0:02:47.9]} 7... Nc6 {[%clk 0:02:53.3]} 8. d4 {[%clk 0:02:46]}
8... cxd4 {[%clk 0:02:53]} 9. cxd4 {[%clk 0:02:35.4]} 9... d5 {[%clk 0:02:52.6]}
10. e5 {[%clk 0:02:33.3]} 10... Ne4 {[%clk 0:02:52.6]} 11. Bd3 {[%clk
0:02:33.3]} 11... Bf5 {[%clk 0:02:37.8]} 12. Nc3 {[%clk 0:02:30.3]} 12... Nxc3
{[%clk 0:02:36.3]} 13. bxc3 {[%clk 0:02:31.2]} 13... Bxd3 {[%clk 0:02:36.6]} 14.
Qxd3 {[%clk 0:02:32.1]} 14... Na5 {[%clk 0:02:37]} 15. Nd2 {[%clk 0:02:24.3]}
15... Rc8 {[%clk 0:02:36.1]} 16. Rb1 {[%clk 0:02:21.3]} 16... Qc7 {[%clk
0:02:35.9]} 17. Ba3 {[%clk 0:02:16.8]} 17... Rfe8 {[%clk 0:02:33.3]} 18. Bb4
{[%clk 0:02:09.6]} 18... Nc4 {[%clk 0:02:30.7]} 19. Nxc4 {[%clk 0:02:08.2]}
19... Qxc4 {[%clk 0:02:31.6]} 20. Qxc4 {[%clk 0:02:07.5]} 20... Rxc4 {[%clk
0:02:32.5]} 21. a4 {[%clk 0:02:05]} 21... Bh6 {[%clk 0:02:17.1]} 22. Red1 {[%clk
0:01:45.1]} 22... e6 {[%clk 0:02:16.3]} 23. a5 {[%clk 0:01:43.5]} 23... Rec8
{[%clk 0:02:13.2]} 24. Bc5 {[%clk 0:01:42.6]} 24... Rc7 {[%clk 0:01:48.1]} 25.
Bxa7 {[%clk 0:01:33.7]} 25... Rxc3 {[%clk 0:01:47.5]} 26. Bc5 {[%clk 0:01:33]}
26... Bf8 {[%clk 0:01:39.3]} 27. Bxf8 {[%clk 0:01:25.9]} 27... Kxf8 {[%clk
0:01:39.3]} 28. Kf1 {[%clk 0:01:24.9]} 28... Ra3 {[%clk 0:01:36.5]} 29. Rb5
{[%clk 0:01:10.7]} 29... Ke8 {[%clk 0:01:19.4]} 30. Ke2 {[%clk 0:01:07.9]} 30...
Kd7 {[%clk 0:01:18.3]} 31. Rd3 {[%clk 0:01:02.9]} 31... Ra2+ {[%clk 0:01:17]}
32. Rd2 {[%clk 0:01:02.8]} 32... Ra4 {[%clk 0:01:14.8]} 33. Rdb2 {[%clk
0:00:57.8]} 33... Kc8 {[%clk 0:01:14.4]} 34. Kd3 {[%clk 0:00:55.8]} 34... Kb8
{[%clk 0:01:09.8]} 35. f4 {[%clk 0:00:46.5]} 35... h5 {[%clk 0:01:05.3]} 36. g3
{[%clk 0:00:44]} 36... Ka7 {[%clk 0:01:05]} 37. Rb1 {[%clk 0:00:40.1]} 37... Ra2
{[%clk 0:01:02.7]} 38. R1b2 {[%clk 0:00:40.2]} 38... Rxb2 {[%clk 0:00:59.9]} 39.
Rxb2 {[%clk 0:00:39.3]} 39... Ka6 {[%clk 0:01:00.8]} 40. Ra2 {[%clk 0:00:31.2]}
40... Rc1 {[%clk 0:00:58.8]} 41. Rb2 {[%clk 0:00:27.3]} 41... h4 {[%clk
0:00:42.2]} 42. gxh4 {[%clk 0:00:19.5]} 42... Ra1 {[%clk 0:00:36]} 43. Rb6+
{[%clk 0:00:18.9]} 43... Ka7 {[%clk 0:00:36.1]} 44. Rb5 {[%clk 0:00:17.7]} 44...
Ra3+ {[%clk 0:00:35.8]} 45. Ke2 {[%clk 0:00:17.3]} 45... Rh3 {[%clk 0:00:35.8]}
46. Kf2 {[%clk 0:00:15.9]} 46... Rxh4 {[%clk 0:00:07]} 47. Kg3 {[%clk
0:00:16.8]} 47... Rh5 {[%clk 0:00:07.4]} 48. Rb6 {[%clk 0:00:15.8]} 48... Rh8
{[%clk 0:00:06.4]} 49. Rd6 {[%clk 0:00:15.5]} 49... Rc8 {[%clk 0:00:02.3]} 50.
Rd7 {[%clk 0:00:16.4]} 50... Rc4 {[%clk 0:00:02.1]} 51. Rxf7 {[%clk 0:00:15.1]}
51... Rxd4 {[%clk 0:00:02.6]} 52. Re7 {[%clk 0:00:15.5]} 52... Rd2 {[%clk
0:00:02.9]} 53. Rxe6 {[%clk 0:00:16.4]} 53... d4 {[%clk 0:00:03.1]} 54. Rxg6
{[%clk 0:00:16.9]} 54... d3 {[%clk 0:00:03.6]} 55. Rd6 {[%clk 0:00:17.8]} 55...
Rd1 {[%clk 0:00:03.4]} 56. e6 {[%clk 0:00:16.6]} 56... d2 {[%clk 0:00:03.7]} 57.
Kg2 {[%clk 0:00:16.9]} 57... Re1 {[%clk 0:00:03.2]} 58. f5 {[%clk 0:00:14.8]}
58... d1=Q {[%clk 0:00:02.9]} 59. Rxd1 {[%clk 0:00:15.2]} 59... Rxd1 {[%clk
0:00:03.8]} 60. f6 {[%clk 0:00:15.8]} 60... Rd6 {[%clk 0:00:04.1]} 61. e7 {[%clk
0:00:16.7]} 61... Re6 {[%clk 0:00:04.3]} 62. f7 {[%clk 0:00:16.8]} 62... Rg6+
{[%clk 0:00:05.2]} 63. Kh1 {[%clk 0:00:16.4]} 63... Rf6 {[%clk 0:00:05.5]} 64.
f8=Q {[%clk 0:00:16.2]} 64... Rxf8 {[%clk 0:00:05.7]} 65. exf8=Q {[%clk
0:00:15.8]} 1-0

[Event "*** SCC Grand Prix: Titled Tuesday Blitz"]
[Site "Chess.com"]
[Date "2020.08.25"]
[Round "8"]
[White "NoboaKevin1999"]
[Black "katchesskat"]
[Result "0-1"]
[WhiteElo "2404"]
[BlackElo "2282"]
[TimeControl "180+1"]
[EndTime "11:37:26 PDT"]
[Termination "katchesskat won on time"]

1. d4 {[%clk 0:03:00.9]} 1... c5 {[%clk 0:03:00.9]} 2. d5 {[%clk 0:03:00.3]}
2... e5 {[%clk 0:03:00.1]} 3. Nc3 {[%clk 0:02:59.7]} 3... a6 {[%clk 0:02:59.2]}
4. a4 {[%clk 0:02:58.9]} 4... d6 {[%clk 0:02:58.4]} 5. e4 {[%clk 0:02:57.5]}
5... Ne7 {[%clk 0:02:58.4]} 6. Bd3 {[%clk 0:02:56.4]} 6... Ng6 {[%clk
0:02:58.3]} 7. Nge2 {[%clk 0:02:55.9]} 7... Be7 {[%clk 0:02:58.5]} 8. Be3 {[%clk
0:02:55.5]} 8... O-O {[%clk 0:02:58.2]} 9. O-O {[%clk 0:02:55]} 9... Bg5 {[%clk
0:02:58.2]} 10. Qd2 {[%clk 0:02:52.2]} 10... Bxe3 {[%clk 0:02:55.1]} 11. fxe3
{[%clk 0:02:52.1]} 11... Nd7 {[%clk 0:02:41.6]} 12. Ng3 {[%clk 0:02:51.2]} 12...
Nf6 {[%clk 0:02:40.7]} 13. h3 {[%clk 0:02:40.4]} 13... b6 {[%clk 0:02:39.5]} 14.
Rf2 {[%clk 0:02:36.4]} 14... Rb8 {[%clk 0:02:34.3]} 15. Raf1 {[%clk 0:02:35]}
15... Bd7 {[%clk 0:02:27.9]} 16. Bxa6 {[%clk 0:02:29.1]} 16... b5 {[%clk
0:02:24.4]} 17. Bxb5 {[%clk 0:02:27.6]} 17... Bxb5 {[%clk 0:02:21.9]} 18. Nxb5
{[%clk 0:02:14.2]} 18... c4 {[%clk 0:02:21.6]} 19. Qb4 {[%clk 0:02:01.7]} 19...
Qb6 {[%clk 0:02:19]} 20. Re1 {[%clk 0:01:56.9]} 20... Ne8 {[%clk 0:02:12.7]} 21.
Qxc4 {[%clk 0:01:44.1]} 21... Ne7 {[%clk 0:02:11.7]} 22. b3 {[%clk 0:01:35.4]}
22... g6 {[%clk 0:02:06.1]} 23. Qd3 {[%clk 0:01:34.2]} 23... h5 {[%clk
0:02:05.4]} 24. Na3 {[%clk 0:01:27.5]} 24... h4 {[%clk 0:02:05.2]} 25. Nf1
{[%clk 0:01:22.7]} 25... Qb4 {[%clk 0:02:04.4]} 26. Nc4 {[%clk 0:01:22]} 26...
Qxe1 {[%clk 0:02:03.7]} 27. a5 {[%clk 0:01:13.1]} 27... Qb4 {[%clk 0:01:55.4]}
28. Nfd2 {[%clk 0:01:09.4]} 28... Ra8 {[%clk 0:01:45.8]} 29. Nf3 {[%clk
0:01:08.1]} 29... Nf6 {[%clk 0:01:36.7]} 30. Nxh4 {[%clk 0:01:05.7]} 30... Nh5
{[%clk 0:01:36.5]} 31. Rf3 {[%clk 0:00:49.9]} 31... Qe1+ {[%clk 0:01:24.9]} 32.
Qf1 {[%clk 0:00:46.8]} 32... Qxh4 {[%clk 0:01:24.4]} 33. Qd3 {[%clk 0:00:41.4]}
33... Qe1+ {[%clk 0:01:18.7]} 34. Kh2 {[%clk 0:00:40.6]} 34... Qb4 {[%clk
0:01:10.2]} 35. g4 {[%clk 0:00:39.6]} 35... Ng7 {[%clk 0:01:09]} 36. h4 {[%clk
0:00:36.5]} 36... f6 {[%clk 0:01:07.7]} 37. Rf1 {[%clk 0:00:29.1]} 37... Kf7
{[%clk 0:01:06.7]} 38. Ra1 {[%clk 0:00:28.3]} 38... Rh8 {[%clk 0:01:06.2]} 39.
Kg3 {[%clk 0:00:24.8]} 39... f5 {[%clk 0:00:58.1]} 40. g5 {[%clk 0:00:15.9]}
40... fxe4 {[%clk 0:00:49.7]} 41. Qxe4 {[%clk 0:00:14.6]} 41... Ngf5+ {[%clk
0:00:46]} 42. Kf2 {[%clk 0:00:12.8]} 42... Kg7 {[%clk 0:00:37.8]} 43. Ra4 {[%clk
0:00:11]} 43... Qc5 {[%clk 0:00:36.1]} 44. b4 {[%clk 0:00:04.2]} 44... Qc7
{[%clk 0:00:34.7]} 45. Nb6 {[%clk 0:00:03.8]} 45... Rab8 {[%clk 0:00:26.6]} 46.
b5 {[%clk 0:00:04]} 46... Rxh4 {[%clk 0:00:23.3]} 47. Qd3 {[%clk 0:00:04.2]}
47... Rxb6 {[%clk 0:00:22.5]} 48. axb6 {[%clk 0:00:04]} 48... Qxb6 {[%clk
0:00:23.4]} 49. Rxh4 {[%clk 0:00:03.3]} 49... Nxh4 {[%clk 0:00:23.2]} 50. c4
{[%clk 0:00:04.2]} 50... Nhf5 {[%clk 0:00:22.4]} 51. Qe4 {[%clk 0:00:03.6]}
51... Qc5 {[%clk 0:00:22.1]} 52. Qd3 {[%clk 0:00:03.5]} 52... Qb4 {[%clk
0:00:20.8]} 53. Kf3 {[%clk 0:00:03.7]} 53... Nh4+ {[%clk 0:00:17.5]} 54. Kg4
{[%clk 0:00:03.5]} 54... Nef5 {[%clk 0:00:17.5]} 55. e4 {[%clk 0:00:03.1]} 55...
Qe1 {[%clk 0:00:13.3]} 56. exf5 {[%clk 0:00:02.2]} 56... Nxf5 {[%clk 0:00:13.4]}
0-1

[Event "*** SCC Grand Prix: Titled Tuesday Blitz"]
[Site "Chess.com"]
[Date "2020.08.25"]
[Round "8"]
[White "SanchezKelvin"]
[Black "parintele_chess"]
[Result "0-1"]
[WhiteElo "2388"]
[BlackElo "2155"]
[TimeControl "180+1"]
[EndTime "11:37:26 PDT"]
[Termination "parintele_chess won on time"]

1. e4 {[%clk 0:03:00.9]} 1... c5 {[%clk 0:02:58.6]} 2. Nf3 {[%clk 0:02:53.6]}
2... Nc6 {[%clk 0:02:58.5]} 3. d4 {[%clk 0:02:52.3]} 3... cxd4 {[%clk
0:02:59.4]} 4. Nxd4 {[%clk 0:02:50.5]} 4... e5 {[%clk 0:02:59.4]} 5. Nb5 {[%clk
0:02:47.4]} 5... a6 {[%clk 0:02:59.1]} 6. Nd6+ {[%clk 0:02:45.5]} 6... Bxd6
{[%clk 0:02:59.5]} 7. Qxd6 {[%clk 0:02:46.3]} 7... Qf6 {[%clk 0:02:59.9]} 8. Qd2
{[%clk 0:02:42.7]} 8... Qg6 {[%clk 0:02:56.5]} 9. f3 {[%clk 0:02:41.9]} 9...
Nge7 {[%clk 0:02:52]} 10. c4 {[%clk 0:02:37]} 10... d6 {[%clk 0:02:51.5]} 11.
Nc3 {[%clk 0:02:33.4]} 11... O-O {[%clk 0:02:49.4]} 12. Bd3 {[%clk 0:02:20.7]}
12... Nd4 {[%clk 0:02:49.1]} 13. O-O {[%clk 0:02:17.5]} 13... f5 {[%clk
0:02:46.7]} 14. Qg5 {[%clk 0:02:10.2]} 14... f4 {[%clk 0:02:34.7]} 15. Qxg6
{[%clk 0:02:08]} 15... hxg6 {[%clk 0:02:35.6]} 16. b3 {[%clk 0:02:05.7]} 16...
Be6 {[%clk 0:02:32.8]} 17. Ba3 {[%clk 0:02:05.1]} 17... Rad8 {[%clk 0:02:18.3]}
18. Rfd1 {[%clk 0:01:57.3]} 18... Kf7 {[%clk 0:02:16.5]} 19. Rac1 {[%clk
0:01:48.3]} 19... Nec6 {[%clk 0:02:10.2]} 20. Nd5 {[%clk 0:01:45.9]} 20... g5
{[%clk 0:01:53.5]} 21. h3 {[%clk 0:01:44.6]} 21... Rh8 {[%clk 0:01:49.9]} 22.
Kf2 {[%clk 0:01:23.1]} 22... Bxh3 {[%clk 0:01:41.5]} 23. gxh3 {[%clk 0:01:20.6]}
23... Rxh3 {[%clk 0:01:42.4]} 24. Bf1 {[%clk 0:00:51.8]} 24... Rxf3+ {[%clk
0:01:40.9]} 25. Kg1 {[%clk 0:00:42]} 25... Rg3+ {[%clk 0:01:21]} 26. Kf2 {[%clk
0:00:41.2]} 26... Rh8 {[%clk 0:01:08.7]} 27. Bg2 {[%clk 0:00:35.1]} 27... Rh2
{[%clk 0:00:47.1]} 28. Rg1 {[%clk 0:00:34.4]} 28... Rf3+ {[%clk 0:00:40.9]} 29.
Ke1 {[%clk 0:00:27.6]} 29... g4 {[%clk 0:00:28]} 30. Bxf3 {[%clk 0:00:11.7]}
30... Nxf3+ {[%clk 0:00:28.8]} 31. Kf1 {[%clk 0:00:10.8]} 31... Nxg1 {[%clk
0:00:26.3]} 32. Kxg1 {[%clk 0:00:10.6]} 32... Rxa2 {[%clk 0:00:27.2]} 33. Bxd6
{[%clk 0:00:10.4]} 33... f3 {[%clk 0:00:24]} 34. Bc5 {[%clk 0:00:09.6]} 34... g3
{[%clk 0:00:23.3]} 35. Rf1 {[%clk 0:00:08.8]} 35... f2+ {[%clk 0:00:22.1]} 36.
Kg2 {[%clk 0:00:09]} 36... Nd4 {[%clk 0:00:21.5]} 37. Kxg3 {[%clk 0:00:08.4]}
37... Ke6 {[%clk 0:00:14.5]} 38. Bxd4 {[%clk 0:00:07.4]} 38... exd4 {[%clk
0:00:15.4]} 39. Rxf2 {[%clk 0:00:07.3]} 39... Ra3 {[%clk 0:00:15.8]} 40. Rf3
{[%clk 0:00:07.1]} 40... Ke5 {[%clk 0:00:14.2]} 41. Nf4 {[%clk 0:00:05.1]} 41...
Kxe4 {[%clk 0:00:13.7]} 42. Ne6 {[%clk 0:00:04.6]} 42... d3 {[%clk 0:00:13.2]}
43. Nc5+ {[%clk 0:00:04.5]} 43... Kd4 {[%clk 0:00:12.8]} 44. Nxd3 {[%clk
0:00:04.3]} 44... Rxb3 {[%clk 0:00:13.1]} 45. Nf4 {[%clk 0:00:03]} 45... Rxf3+
{[%clk 0:00:12.4]} 46. Kxf3 {[%clk 0:00:03.9]} 46... Kxc4 {[%clk 0:00:13.2]} 47.
Ne6 {[%clk 0:00:04]} 47... g6 {[%clk 0:00:12.6]} 48. Nf4 {[%clk 0:00:04.1]}
48... b5 {[%clk 0:00:11.3]} 49. Nxg6 {[%clk 0:00:04]} 49... Kc3 {[%clk
0:00:10.9]} 50. Ke2 {[%clk 0:00:04.2]} 50... Kc2 {[%clk 0:00:10.6]} 51. Nf4
{[%clk 0:00:03.7]} 51... b4 {[%clk 0:00:10.8]} 52. Ne6 {[%clk 0:00:03.1]} 52...
b3 {[%clk 0:00:09.8]} 53. Nd4+ {[%clk 0:00:03.5]} 53... Kc3 {[%clk 0:00:10.7]}
0-1